[Event "Titled Tuesday Blitz July 26 Late 2022"]
[White "Souleidis, Georgios"]
[Black "Gallana, Marco"]
[WhiteFideId "4206827"]
[BlackFideId "824542"]
[WhiteElo "2401"]
[BlackElo "2290"]
[Result "1-0"]
[Round "11"]
[TimeControl "180+1"]
[Date "2022.07.26"]
[WhiteClock "0:00:14"]
[BlackClock "0:00:02"]

1. e4 {[%clk 0:03:00]}  c5 {[%clk 0:02:55]} 2. Be2 {[%clk 0:03:00]}  Nc6 {[%clk 0:02:44]} 3. d3 {[%clk 0:03:00]}  Nf6 {[%clk 0:02:31]} 4. f4 {[%clk 0:03:00]}  d5 {[%clk 0:02:25]} 5. e5 {[%clk 0:03:00]}  Ng8 {[%clk 0:02:25]} 6. Nf3 {[%clk 0:03:00]}  Bg4 {[%clk 0:02:25]} 7. O-O {[%clk 0:02:59]}  e6 {[%clk 0:02:25]} 8. c3 {[%clk 0:02:59]}  Nge7 {[%clk 0:02:22]} 9. Be3 {[%clk 0:02:55]}  Nf5 {[%clk 0:02:21]} 10. Bf2 {[%clk 0:02:55]}  h5 {[%clk 0:02:12]} 11. Na3 {[%clk 0:02:38]}  a6 {[%clk 0:02:09]} 12. Nc2 {[%clk 0:02:38]}  Be7 {[%clk 0:02:06]} 13. d4 {[%clk 0:02:36]}  Qb6 {[%clk 0:02:04]} 14. Rb1 {[%clk 0:02:24]}  Rc8 {[%clk 0:02:03]} 15. a3 {[%clk 0:02:18]}  Bxf3 {[%clk 0:01:38]} 16. Bxf3 {[%clk 0:02:18]}  cxd4 {[%clk 0:01:39]} 17. Nxd4 {[%clk 0:02:17]}  Ncxd4 {[%clk 0:01:38]} 18. cxd4 {[%clk 0:02:15]}  g6 {[%clk 0:01:35]} 19. Qd2 {[%clk 0:02:07]}  O-O {[%clk 0:01:29]} 20. Rfc1 {[%clk 0:02:03]}  a5 {[%clk 0:00:52]} 21. g3 {[%clk 0:01:49]}  a4 {[%clk 0:00:48]} 22. h3 {[%clk 0:01:47]}  Qb3 {[%clk 0:00:19]} 23. Kg2 {[%clk 0:01:28]}  b5 {[%clk 0:00:16]} 24. Bd1 {[%clk 0:01:26]}  Qa2 {[%clk 0:00:16]} 25. Ra1 {[%clk 0:01:21]}  Rxc1 {[%clk 0:00:15]} 26. Rxa2 {[%clk 0:01:17]}  Rfc8 {[%clk 0:00:15]} 27. b3 {[%clk 0:01:04]}  R1c3 {[%clk 0:00:10]} 28. bxa4 {[%clk 0:00:57]}  bxa4 {[%clk 0:00:10]} 29. Bxa4 {[%clk 0:00:44]}  Bxa3 {[%clk 0:00:09]} 30. Rc2 {[%clk 0:00:39]}  Bb4 {[%clk 0:00:08]} 31. Rxc3 {[%clk 0:00:38]}  Rxc3 {[%clk 0:00:08]} 32. Qb2 {[%clk 0:00:34]}  Ba5 {[%clk 0:00:07]} 33. Bc2 {[%clk 0:00:30]}  Ne3+ {[%clk 0:00:02]} 34. Bxe3 {[%clk 0:00:29]}  Rxe3 {[%clk 0:00:03]} 35. Ba4 {[%clk 0:00:16]}  Bc3 {[%clk 0:00:01]} 36. Qb8+ {[%clk 0:00:15]}  Kg7 {[%clk 0:00:01]} 37. Qd8 {[%clk 0:00:14]}  Bxd4 {[%clk 0:00:01]} 38. Qf6+ {[%clk 0:00:14]}  Kg8 {[%clk 0:00:02]} 39. Be8 {[%clk 0:00:13]}  Re2+ {[%clk 0:00:02]} 40. Kf1 {[%clk 0:00:14]}  Rf2+ {[%clk 0:00:02]} 41. Ke1 {[%clk 0:00:14]} 1-0


[Site "https://www.chess.com"]

[Event "Titled Tuesday Blitz July 26 Late 2022"]
[White "Tinmaz, Kerem"]
[Black "Buchenau, Frank"]
[WhiteFideId "44559151"]
[BlackFideId "4604350"]
[WhiteElo "1443"]
[BlackElo "2157"]
[Result "1-0"]
[Round "11"]
[TimeControl "180+1"]
[Date "2022.07.27"]
[WhiteClock "0:00:03"]
[BlackClock "0:00:11"]

1. e4 {[%clk 0:03:00]}  e6 {[%clk 0:02:57]} 2. d4 {[%clk 0:03:00]}  d5 {[%clk 0:02:57]} 3. Nd2 {[%clk 0:03:00]}  c5 {[%clk 0:02:57]} 4. Ngf3 {[%clk 0:03:00]}  cxd4 {[%clk 0:02:56]} 5. Nxd4 {[%clk 0:03:01]}  Nc6 {[%clk 0:02:55]} 6. Bb5 {[%clk 0:03:01]}  Bd7 {[%clk 0:02:55]} 7. Nxc6 {[%clk 0:03:01]}  bxc6 {[%clk 0:02:54]} 8. Bd3 {[%clk 0:03:01]}  Bd6 {[%clk 0:02:49]} 9. O-O {[%clk 0:03:00]}  Ne7 {[%clk 0:02:44]} 10. Qe2 {[%clk 0:02:54]}  Qc7 {[%clk 0:02:39]} 11. Nf3 {[%clk 0:02:52]}  O-O {[%clk 0:02:37]} 12. e5 {[%clk 0:02:45]}  Bc5 {[%clk 0:02:35]} 13. Be3 {[%clk 0:02:45]}  Bxe3 {[%clk 0:02:29]} 14. Qxe3 {[%clk 0:02:29]}  Ng6 {[%clk 0:02:29]} 15. h4 {[%clk 0:02:25]}  f6 {[%clk 0:02:28]} 16. Rae1 {[%clk 0:02:05]}  Nxe5 {[%clk 0:02:16]} 17. Nxe5 {[%clk 0:02:03]}  fxe5 {[%clk 0:02:15]} 18. Qxe5 {[%clk 0:02:02]}  Qxe5 {[%clk 0:02:13]} 19. Rxe5 {[%clk 0:02:03]}  Rab8 {[%clk 0:02:10]} 20. b3 {[%clk 0:02:03]}  a5 {[%clk 0:02:00]} 21. a4 {[%clk 0:02:00]}  Rb4 {[%clk 0:01:58]} 22. g3 {[%clk 0:01:56]}  c5 {[%clk 0:01:57]} 23. Rd1 {[%clk 0:01:26]}  c4 {[%clk 0:01:24]} 24. bxc4 {[%clk 0:01:22]}  dxc4 {[%clk 0:01:17]} 25. Bxh7+ {[%clk 0:01:20]}  Kxh7 {[%clk 0:01:18]} 26. Rxd7 {[%clk 0:01:20]}  Rxa4 {[%clk 0:01:17]} 27. Rxe6 {[%clk 0:01:15]}  Ra2 {[%clk 0:01:10]} 28. Ree7 {[%clk 0:01:12]}  Rg8 {[%clk 0:01:10]} 29. c3 {[%clk 0:00:55]}  Rc2 {[%clk 0:01:05]} 30. Ra7 {[%clk 0:00:54]}  Rxc3 {[%clk 0:01:04]} 31. Rxa5 {[%clk 0:00:52]}  Rf3 {[%clk 0:00:49]} 32. Rh5+ {[%clk 0:00:23]}  Kg6 {[%clk 0:00:48]} 33. Rg5+ {[%clk 0:00:24]}  Kh6 {[%clk 0:00:47]} 34. Re6+ {[%clk 0:00:20]}  g6 {[%clk 0:00:42]} 35. Rc6 {[%clk 0:00:20]}  c3 {[%clk 0:00:40]} 36. Kg2 {[%clk 0:00:16]}  Rd3 {[%clk 0:00:38]} 37. Rgc5 {[%clk 0:00:14]}  Rgd8 {[%clk 0:00:29]} 38. Rxc3 {[%clk 0:00:13]}  Rxc3 {[%clk 0:00:29]} 39. Rxc3 {[%clk 0:00:14]}  Rd5 {[%clk 0:00:24]} 40. g4 {[%clk 0:00:13]}  Kg7 {[%clk 0:00:24]} 41. Kg3 {[%clk 0:00:14]}  Kf6 {[%clk 0:00:23]} 42. f4 {[%clk 0:00:12]}  Rd6 {[%clk 0:00:21]} 43. Re3 {[%clk 0:00:06]}  Ra6 {[%clk 0:00:21]} 44. g5+ {[%clk 0:00:04]}  Kf7 {[%clk 0:00:20]} 45. Kg4 {[%clk 0:00:04]}  Ra4 {[%clk 0:00:19]} 46. Rf3 {[%clk 0:00:02]}  Rb4 {[%clk 0:00:19]} 47. h5 {[%clk 0:00:02]}  gxh5+ {[%clk 0:00:17]} 48. Kxh5 {[%clk 0:00:03]}  Rb1 {[%clk 0:00:15]} 49. Ra3 {[%clk 0:00:01]}  Ke6 {[%clk 0:00:14]} 50. Kg6 {[%clk 0:00:01]}  Rf1 {[%clk 0:00:13]} 51. f5+ {[%clk 0:00:02]}  Ke5 {[%clk 0:00:12]} 52. f6 {[%clk 0:00:02]}  Kf4 {[%clk 0:00:11]} 53. f7 {[%clk 0:00:02]}  Kg4 {[%clk 0:00:12]} 54. Kg7 {[%clk 0:00:02]}  Kxg5 {[%clk 0:00:11]} 55. f8=Q {[%clk 0:00:03]} 1-0


[Site "https://www.chess.com"]

[Event "Titled Tuesday Blitz July 26 Late 2022"]
[White "Vagman, Roy"]
[Black "Zhukova, Natalia"]
[WhiteFideId "2828995"]
[BlackFideId "14101513"]
[WhiteElo "1956"]
[BlackElo "2296"]
[Result "0-1"]
[Round "11"]
[TimeControl "180+1"]
[Date "2022.07.27"]
[WhiteClock "0:00:16"]
[BlackClock "0:00:10"]

1. d4 {[%clk 0:03:00]}  Nf6 {[%clk 0:02:58]} 2. Bf4 {[%clk 0:03:00]}  d5 {[%clk 0:02:56]} 3. Nf3 {[%clk 0:03:00]}  e6 {[%clk 0:02:53]} 4. e3 {[%clk 0:03:00]}  c5 {[%clk 0:02:53]} 5. c3 {[%clk 0:02:59]}  Nc6 {[%clk 0:02:53]} 6. Be2 {[%clk 0:02:54]}  Be7 {[%clk 0:02:54]} 7. h3 {[%clk 0:02:54]}  Bd6 {[%clk 0:02:52]} 8. Bxd6 {[%clk 0:02:46]}  Qxd6 {[%clk 0:02:52]} 9. O-O {[%clk 0:02:46]}  e5 {[%clk 0:02:48]} 10. dxe5 {[%clk 0:02:40]}  Nxe5 {[%clk 0:02:48]} 11. Nxe5 {[%clk 0:02:40]}  Qxe5 {[%clk 0:02:48]} 12. Nd2 {[%clk 0:02:41]}  O-O {[%clk 0:02:47]} 13. c4 {[%clk 0:02:41]}  Rd8 {[%clk 0:02:40]} 14. b3 {[%clk 0:02:37]}  Qe7 {[%clk 0:02:33]} 15. Qc1 {[%clk 0:02:33]}  b6 {[%clk 0:02:26]} 16. cxd5 {[%clk 0:02:27]}  Nxd5 {[%clk 0:02:24]} 17. a3 {[%clk 0:02:18]}  Nxe3 {[%clk 0:01:38]} 18. Re1 {[%clk 0:02:13]}  Nxg2 {[%clk 0:01:31]} 19. Kxg2 {[%clk 0:01:48]}  Qg5+ {[%clk 0:01:30]} 20. Bg4 {[%clk 0:01:35]}  Bxg4 {[%clk 0:01:23]} 21. Ne4 {[%clk 0:01:36]}  Qxc1 {[%clk 0:01:09]} 22. Raxc1 {[%clk 0:01:37]}  Be6 {[%clk 0:01:09]} 23. b4 {[%clk 0:01:36]}  c4 {[%clk 0:01:06]} 24. b5 {[%clk 0:01:30]}  h6 {[%clk 0:00:59]} 25. Re3 {[%clk 0:01:27]}  Rd5 {[%clk 0:00:47]} 26. Kh2 {[%clk 0:01:27]}  Rxb5 {[%clk 0:00:46]} 27. Rg1 {[%clk 0:01:11]}  Kh7 {[%clk 0:00:36]} 28. Reg3 {[%clk 0:01:08]}  g6 {[%clk 0:00:31]} 29. Rf3 {[%clk 0:01:00]}  Rf5 {[%clk 0:00:22]} 30. Re3 {[%clk 0:00:57]}  Bd5 {[%clk 0:00:18]} 31. f3 {[%clk 0:00:52]}  Kg7 {[%clk 0:00:17]} 32. Nd6 {[%clk 0:00:49]}  Rg5 {[%clk 0:00:15]} 33. Rd1 {[%clk 0:00:45]}  Be6 {[%clk 0:00:14]} 34. f4 {[%clk 0:00:43]}  Rc5 {[%clk 0:00:13]} 35. Ne4 {[%clk 0:00:35]}  Rd5 {[%clk 0:00:13]} 36. Rc1 {[%clk 0:00:33]}  Rd3 {[%clk 0:00:12]} 37. Re2 {[%clk 0:00:25]}  Rxh3+ {[%clk 0:00:11]} 38. Kg2 {[%clk 0:00:26]}  Rxa3 {[%clk 0:00:11]} 39. Nd6 {[%clk 0:00:26]}  Bd5+ {[%clk 0:00:11]} 40. Kh2 {[%clk 0:00:25]}  Rd8 {[%clk 0:00:11]} 41. Ne8+ {[%clk 0:00:24]}  Kf8 {[%clk 0:00:11]} 42. Nf6 {[%clk 0:00:25]}  Be6 {[%clk 0:00:11]} 43. Rg1 {[%clk 0:00:22]}  c3 {[%clk 0:00:11]} 44. Rc1 {[%clk 0:00:15]}  Rd2 {[%clk 0:00:10]} 45. Re1 {[%clk 0:00:14]}  Rxe2+ {[%clk 0:00:09]} 46. Rxe2 {[%clk 0:00:15]}  Ra2 {[%clk 0:00:10]} 47. Nd7+ {[%clk 0:00:13]}  Ke7 {[%clk 0:00:08]} 48. Rxa2 {[%clk 0:00:13]}  Bxa2 {[%clk 0:00:08]} 49. Ne5 {[%clk 0:00:14]}  c2 {[%clk 0:00:08]} 50. Nd3 {[%clk 0:00:15]}  Bc4 {[%clk 0:00:08]} 51. Nc1 {[%clk 0:00:16]}  b5 {[%clk 0:00:09]} 52. Kg3 {[%clk 0:00:17]}  b4 {[%clk 0:00:09]} 53. f5 {[%clk 0:00:16]}  b3 {[%clk 0:00:10]} 54. fxg6 {[%clk 0:00:17]}  fxg6 {[%clk 0:00:10]} 55. Nxb3 {[%clk 0:00:14]}  Bxb3 {[%clk 0:00:09]} 56. Kf4 {[%clk 0:00:15]}  c1=Q+ {[%clk 0:00:10]} 57. Ke5 {[%clk 0:00:16]}  Qe3# {[%clk 0:00:10]} 0-1


[Site "https://www.chess.com"]

[Event "Titled Tuesday Blitz July 26 Late 2022"]
[White "Van Dael, Siem"]
[Black "Ansh M Shah"]
[WhiteFideId "1049771"]
[BlackFideId "25033379"]
[WhiteElo "2113"]
[BlackElo "1819"]
[Result "0-1"]
[Round "11"]
[TimeControl "180+1"]
[Date "2022.07.27"]
[WhiteClock "0:01:21"]
[BlackClock "0:00:33"]

1. e4 {[%clk 0:03:00]}  c6 {[%clk 0:02:59]} 2. d4 {[%clk 0:02:50]}  d5 {[%clk 0:03:00]} 3. Nd2 {[%clk 0:02:50]}  dxe4 {[%clk 0:03:00]} 4. Nxe4 {[%clk 0:02:51]}  Nf6 {[%clk 0:03:00]} 5. Nxf6+ {[%clk 0:02:49]}  exf6 {[%clk 0:03:01]} 6. c3 {[%clk 0:02:48]}  Bd6 {[%clk 0:03:01]} 7. Bd3 {[%clk 0:02:49]}  O-O {[%clk 0:03:01]} 8. Qc2 {[%clk 0:02:50]}  Re8+ {[%clk 0:03:02]} 9. Ne2 {[%clk 0:02:47]}  h5 {[%clk 0:03:02]} 10. O-O {[%clk 0:02:45]}  Be6 {[%clk 0:03:02]} 11. Ng3 {[%clk 0:02:44]}  h4 {[%clk 0:03:01]} 12. Nf5 {[%clk 0:02:45]}  Bxf5 {[%clk 0:03:00]} 13. Bxf5 {[%clk 0:02:46]}  Nd7 {[%clk 0:02:58]} 14. Bd2 {[%clk 0:02:40]}  Nf8 {[%clk 0:02:58]} 15. Rae1 {[%clk 0:02:40]}  g6 {[%clk 0:02:58]} 16. Bd3 {[%clk 0:02:37]}  Kg7 {[%clk 0:02:58]} 17. h3 {[%clk 0:02:37]}  Qc7 {[%clk 0:02:57]} 18. c4 {[%clk 0:02:35]}  c5 {[%clk 0:02:52]} 19. d5 {[%clk 0:02:35]}  Be5 {[%clk 0:02:52]} 20. Bc3 {[%clk 0:02:34]}  Nd7 {[%clk 0:02:47]} 21. f4 {[%clk 0:02:33]}  Bd4+ {[%clk 0:02:43]} 22. Bxd4 {[%clk 0:02:31]}  cxd4 {[%clk 0:02:43]} 23. Kh1 {[%clk 0:02:30]}  Rxe1 {[%clk 0:02:36]} 24. Rxe1 {[%clk 0:02:30]}  Qxf4 {[%clk 0:02:34]} 25. Re7 {[%clk 0:02:25]}  Qd6 {[%clk 0:02:33]} 26. Re4 {[%clk 0:02:16]}  Nc5 {[%clk 0:02:02]} 27. Rxd4 {[%clk 0:02:12]}  Re8 {[%clk 0:02:01]} 28. Bf1 {[%clk 0:02:07]}  Re1 {[%clk 0:01:45]} 29. Rd1 {[%clk 0:02:06]}  Rxd1 {[%clk 0:01:32]} 30. Qxd1 {[%clk 0:02:07]}  Ne4 {[%clk 0:01:33]} 31. Qf3 {[%clk 0:02:01]}  Ng3+ {[%clk 0:01:19]} 32. Kg1 {[%clk 0:01:59]}  Qe5 {[%clk 0:01:00]} 33. Qd3 {[%clk 0:01:41]}  Qxb2 {[%clk 0:00:54]} 34. d6 {[%clk 0:01:39]}  Qb6+ {[%clk 0:00:54]} 35. Kh2 {[%clk 0:01:38]}  Nxf1+ {[%clk 0:00:53]} 36. Qxf1 {[%clk 0:01:34]}  Qxd6+ {[%clk 0:00:54]} 37. Kh1 {[%clk 0:01:34]}  b6 {[%clk 0:00:47]} 38. Qe1 {[%clk 0:01:22]}  Qd4 {[%clk 0:00:44]} 39. Qc1 {[%clk 0:01:21]}  a6 {[%clk 0:00:39]} 40. Qa3 {[%clk 0:01:21]}  Qxc4 {[%clk 0:00:34]} 41. Qb2 {[%clk 0:01:21]}  b5 {[%clk 0:00:33]} 0-1


[Site "https://www.chess.com"]

[Event "Titled Tuesday Blitz July 26 Late 2022"]
[White "Vivekananthan, Anish"]
[Black "Zhu, Jiner"]
[WhiteFideId "2090775"]
[BlackFideId "8608059"]
[WhiteElo "2780"]
[BlackElo "2281"]
[Result "1-0"]
[Round "11"]
[TimeControl "180+1"]
[Date "2022.07.26"]
[WhiteClock "0:00:40"]
[BlackClock "0:00:01"]

1. d4 {[%clk 0:03:00]}  Nf6 {[%clk 0:02:54]} 2. c4 {[%clk 0:02:57]}  g6 {[%clk 0:02:53]} 3. Nf3 {[%clk 0:02:57]}  Bg7 {[%clk 0:02:53]} 4. g3 {[%clk 0:02:55]}  O-O {[%clk 0:02:52]} 5. Bg2 {[%clk 0:02:55]}  d6 {[%clk 0:02:49]} 6. O-O {[%clk 0:02:55]}  c6 {[%clk 0:02:49]} 7. Nc3 {[%clk 0:02:56]}  Nbd7 {[%clk 0:02:49]} 8. e4 {[%clk 0:02:55]}  e5 {[%clk 0:02:49]} 9. Qc2 {[%clk 0:02:47]}  Qa5 {[%clk 0:02:47]} 10. Rd1 {[%clk 0:02:44]}  Re8 {[%clk 0:02:39]} 11. h3 {[%clk 0:02:38]}  exd4 {[%clk 0:02:30]} 12. Nxd4 {[%clk 0:02:38]}  Nb6 {[%clk 0:02:27]} 13. Nce2 {[%clk 0:02:04]}  Qe5 {[%clk 0:01:44]} 14. Bf4 {[%clk 0:01:51]}  Qe7 {[%clk 0:01:44]} 15. Nc3 {[%clk 0:01:36]}  Nxc4 {[%clk 0:01:42]} 16. b3 {[%clk 0:01:24]}  Ne5 {[%clk 0:01:39]} 17. Rac1 {[%clk 0:01:20]}  a6 {[%clk 0:01:36]} 18. Na4 {[%clk 0:01:18]}  Qc7 {[%clk 0:01:16]} 19. Be3 {[%clk 0:01:12]}  b5 {[%clk 0:01:12]} 20. Nc3 {[%clk 0:01:10]}  c5 {[%clk 0:01:09]} 21. Ndxb5 {[%clk 0:01:06]}  axb5 {[%clk 0:01:08]} 22. Nxb5 {[%clk 0:01:07]}  Qa5 {[%clk 0:00:59]} 23. Nxd6 {[%clk 0:01:06]}  Be6 {[%clk 0:00:26]} 24. Nxe8 {[%clk 0:01:05]}  Rxe8 {[%clk 0:00:25]} 25. Qxc5 {[%clk 0:01:04]}  Qxc5 {[%clk 0:00:20]} 26. Rxc5 {[%clk 0:01:04]}  Ned7 {[%clk 0:00:16]} 27. Rc7 {[%clk 0:01:04]}  Ra8 {[%clk 0:00:15]} 28. f4 {[%clk 0:01:00]}  Nf8 {[%clk 0:00:06]} 29. e5 {[%clk 0:00:59]}  Ne8 {[%clk 0:00:06]} 30. Re7 {[%clk 0:00:56]}  Rc8 {[%clk 0:00:03]} 31. Bb7 {[%clk 0:00:54]}  Rc7 {[%clk 0:00:02]} 32. Rxe8 {[%clk 0:00:52]}  Rxb7 {[%clk 0:00:03]} 33. Bc5 {[%clk 0:00:49]}  f6 {[%clk 0:00:02]} 34. exf6 {[%clk 0:00:46]}  Bh6 {[%clk 0:00:01]} 35. Rdd8 {[%clk 0:00:44]}  Rf7 {[%clk 0:00:01]} 36. g4 {[%clk 0:00:40]} 1-0


[Site "https://www.chess.com"]

[Event "Titled Tuesday Blitz July 26 Late 2022"]
[White "Vlassov, Nikolai"]
[Black "Kozin, Yuri"]
[WhiteFideId "4103360"]
[BlackFideId "4129920"]
[WhiteElo "2324"]
[BlackElo "2546"]
[Result "1-0"]
[Round "11"]
[TimeControl "180+1"]
[Date "2022.07.26"]
[WhiteClock "0:00:56"]
[BlackClock "0:00:01"]

1. e4 {[%clk 0:03:00]}  c5 {[%clk 0:02:56]} 2. c3 {[%clk 0:03:00]}  Nf6 {[%clk 0:02:56]} 3. e5 {[%clk 0:03:00]}  Nd5 {[%clk 0:02:56]} 4. d4 {[%clk 0:03:01]}  cxd4 {[%clk 0:02:53]} 5. cxd4 {[%clk 0:03:02]}  e6 {[%clk 0:02:51]} 6. Nc3 {[%clk 0:03:02]}  d6 {[%clk 0:02:51]} 7. f4 {[%clk 0:03:01]}  dxe5 {[%clk 0:01:59]} 8. fxe5 {[%clk 0:03:00]}  Bb4 {[%clk 0:01:59]} 9. Qd3 {[%clk 0:02:56]}  b6 {[%clk 0:01:50]} 10. Bd2 {[%clk 0:02:38]}  Ba6 {[%clk 0:01:44]} 11. Qg3 {[%clk 0:02:37]}  Kf8 {[%clk 0:01:11]} 12. Bxa6 {[%clk 0:02:29]}  Nxa6 {[%clk 0:01:11]} 13. Nf3 {[%clk 0:02:29]}  Rc8 {[%clk 0:01:02]} 14. Rc1 {[%clk 0:02:08]}  h6 {[%clk 0:00:33]} 15. O-O {[%clk 0:02:08]}  Nac7 {[%clk 0:00:30]} 16. Ne4 {[%clk 0:02:04]}  Be7 {[%clk 0:00:26]} 17. Rf2 {[%clk 0:01:52]}  Qd7 {[%clk 0:00:21]} 18. Rcf1 {[%clk 0:01:51]}  Kg8 {[%clk 0:00:20]} 19. Nh4 {[%clk 0:01:35]}  Rf8 {[%clk 0:00:18]} 20. Nf6+ {[%clk 0:01:29]}  Bxf6 {[%clk 0:00:12]} 21. exf6 {[%clk 0:01:29]}  Nxf6 {[%clk 0:00:09]} 22. Rxf6 {[%clk 0:01:28]}  Qxd4+ {[%clk 0:00:07]} 23. Be3 {[%clk 0:01:28]}  Qxb2 {[%clk 0:00:06]} 24. Bxh6 {[%clk 0:01:19]}  Rxh6 {[%clk 0:00:04]} 25. Rxh6 {[%clk 0:01:18]}  Qd4+ {[%clk 0:00:03]} 26. Kh1 {[%clk 0:01:17]}  Nd5 {[%clk 0:00:03]} 27. Rh5 {[%clk 0:01:10]}  Rc8 {[%clk 0:00:03]} 28. Nf3 {[%clk 0:01:06]}  Qf6 {[%clk 0:00:01]} 29. Nd2 {[%clk 0:00:56]} 1-0


[Site "https://www.chess.com"]

[Event "Titled Tuesday Blitz July 26 Late 2022"]
[White "Yuan, Qingyu"]
[Black "Krastev, Alexander"]
[WhiteFideId "8609772"]
[BlackFideId "12989983"]
[WhiteElo "2359"]
[BlackElo "2565"]
[Result "1/2-1/2"]
[Round "11"]
[TimeControl "180+1"]
[Date "2022.07.26"]
[WhiteClock "0:00:13"]
[BlackClock "0:00:17"]

1. e4 {[%clk 0:03:00]}  c5 {[%clk 0:03:00]} 2. Nf3 {[%clk 0:03:00]}  Nc6 {[%clk 0:03:00]} 3. Bc4 {[%clk 0:03:00]}  e6 {[%clk 0:02:55]} 4. O-O {[%clk 0:03:00]}  d5 {[%clk 0:02:45]} 5. Bb5 {[%clk 0:02:59]}  dxe4 {[%clk 0:02:38]} 6. Ne5 {[%clk 0:02:59]}  Ne7 {[%clk 0:02:38]} 7. Bxc6+ {[%clk 0:02:53]}  Nxc6 {[%clk 0:02:35]} 8. Nxc6 {[%clk 0:02:53]}  bxc6 {[%clk 0:02:36]} 9. Nc3 {[%clk 0:02:53]}  f5 {[%clk 0:02:26]} 10. Qe2 {[%clk 0:02:52]}  Be7 {[%clk 0:02:23]} 11. Rd1 {[%clk 0:02:49]}  O-O {[%clk 0:02:19]} 12. d3 {[%clk 0:02:49]}  exd3 {[%clk 0:02:17]} 13. Rxd3 {[%clk 0:02:48]}  Qc7 {[%clk 0:02:15]} 14. Rd1 {[%clk 0:01:59]}  Rb8 {[%clk 0:02:05]} 15. b3 {[%clk 0:01:56]}  Bf6 {[%clk 0:02:01]} 16. Bb2 {[%clk 0:01:57]}  Kh8 {[%clk 0:01:52]} 17. Na4 {[%clk 0:01:56]}  Bxb2 {[%clk 0:01:37]} 18. Nxb2 {[%clk 0:01:57]}  e5 {[%clk 0:01:38]} 19. Rd2 {[%clk 0:01:47]}  Be6 {[%clk 0:01:28]} 20. Nd3 {[%clk 0:01:41]}  c4 {[%clk 0:01:15]} 21. Qxe5 {[%clk 0:01:28]}  Qd7 {[%clk 0:00:58]} 22. Nc5 {[%clk 0:00:58]}  Qxd2 {[%clk 0:00:54]} 23. Nxe6 {[%clk 0:00:58]}  Rg8 {[%clk 0:00:26]} 24. Nxg7 {[%clk 0:00:37]}  Qd5 {[%clk 0:00:25]} 25. Qxd5 {[%clk 0:00:32]}  cxd5 {[%clk 0:00:26]} 26. Nxf5 {[%clk 0:00:32]}  Rge8 {[%clk 0:00:25]} 27. Kf1 {[%clk 0:00:29]}  Re5 {[%clk 0:00:18]} 28. Nd4 {[%clk 0:00:23]}  Re4 {[%clk 0:00:18]} 29. Rd1 {[%clk 0:00:20]}  Rc8 {[%clk 0:00:17]} 30. f3 {[%clk 0:00:19]}  Re3 {[%clk 0:00:15]} 31. Kf2 {[%clk 0:00:18]}  Rc3 {[%clk 0:00:15]} 32. Rd2 {[%clk 0:00:13]}  cxb3 {[%clk 0:00:09]} 33. axb3 {[%clk 0:00:14]}  a5 {[%clk 0:00:07]} 34. Ke2 {[%clk 0:00:13]}  Kg7 {[%clk 0:00:07]} 35. Kd1 {[%clk 0:00:13]}  Kf6 {[%clk 0:00:07]} 36. Ne2 {[%clk 0:00:13]}  R3c5 {[%clk 0:00:07]} 37. Nf4 {[%clk 0:00:10]}  Rd8 {[%clk 0:00:06]} 38. Nd3 {[%clk 0:00:10]}  Rb5 {[%clk 0:00:06]} 39. Nf4 {[%clk 0:00:10]}  d4 {[%clk 0:00:04]} 40. Ne2 {[%clk 0:00:10]}  Ke5 {[%clk 0:00:04]} 41. Rd3 {[%clk 0:00:09]}  Rbd5 {[%clk 0:00:03]} 42. Kd2 {[%clk 0:00:08]}  R5d6 {[%clk 0:00:03]} 43. Kc1 {[%clk 0:00:07]}  Rd5 {[%clk 0:00:03]} 44. Kb2 {[%clk 0:00:07]}  Rc8 {[%clk 0:00:03]} 45. Rd2 {[%clk 0:00:07]}  Rc7 {[%clk 0:00:02]} 46. Nc1 {[%clk 0:00:07]}  Rc8 {[%clk 0:00:01]} 47. Nd3+ {[%clk 0:00:08]}  Kf5 {[%clk 0:00:02]} 48. Re2 {[%clk 0:00:07]}  Kg5 {[%clk 0:00:02]} 49. Kc1 {[%clk 0:00:07]}  Rb5 {[%clk 0:00:02]} 50. Kb2 {[%clk 0:00:07]}  Rd5 {[%clk 0:00:02]} 51. Nf2 {[%clk 0:00:08]}  Kg6 {[%clk 0:00:01]} 52. g3 {[%clk 0:00:08]}  Rb5 {[%clk 0:00:02]} 53. h4 {[%clk 0:00:08]}  a4 {[%clk 0:00:02]} 54. Rd2 {[%clk 0:00:06]}  axb3 {[%clk 0:00:03]} 55. cxb3 {[%clk 0:00:06]}  Rc3 {[%clk 0:00:03]} 56. Rxd4 {[%clk 0:00:03]}  Rbxb3+ {[%clk 0:00:03]} 57. Ka2 {[%clk 0:00:03]}  Ra3+ {[%clk 0:00:04]} 58. Kb2 {[%clk 0:00:04]}  Rab3+ {[%clk 0:00:04]} 59. Ka2 {[%clk 0:00:04]}  Rxf3 {[%clk 0:00:04]} 60. Ne4 {[%clk 0:00:05]}  Rbe3 {[%clk 0:00:05]} 61. Rd6+ {[%clk 0:00:04]}  Kf5 {[%clk 0:00:05]} 62. Nd2 {[%clk 0:00:03]}  Rxg3 {[%clk 0:00:03]} 63. Kb2 {[%clk 0:00:04]}  Re2 {[%clk 0:00:03]} 64. Kc1 {[%clk 0:00:04]}  Rh2 {[%clk 0:00:04]} 65. Rd5+ {[%clk 0:00:03]}  Ke6 {[%clk 0:00:03]} 66. Rd4 {[%clk 0:00:04]}  Rg1+ {[%clk 0:00:04]} 67. Kc2 {[%clk 0:00:04]}  Rgg2 {[%clk 0:00:04]} 68. Kc3 {[%clk 0:00:04]}  Ke5 {[%clk 0:00:04]} 69. Nf3+ {[%clk 0:00:05]}  Kf5 {[%clk 0:00:05]} 70. Nxh2 {[%clk 0:00:04]}  Rxh2 {[%clk 0:00:05]} 71. Kd3 {[%clk 0:00:04]}  Ra2 {[%clk 0:00:02]} 72. Ke3 {[%clk 0:00:04]}  Ra3+ {[%clk 0:00:02]} 73. Kf2 {[%clk 0:00:04]}  h5 {[%clk 0:00:03]} 74. Kg2 {[%clk 0:00:05]}  Ra2+ {[%clk 0:00:03]} 75. Kg3 {[%clk 0:00:05]}  Ra3+ {[%clk 0:00:04]} 76. Kg2 {[%clk 0:00:05]}  Re3 {[%clk 0:00:04]} 77. Rb4 {[%clk 0:00:05]}  Re4 {[%clk 0:00:04]} 78. Rxe4 {[%clk 0:00:03]}  Kxe4 {[%clk 0:00:05]} 79. Kg3 {[%clk 0:00:03]}  Ke3 {[%clk 0:00:05]} 80. Kg2 {[%clk 0:00:04]}  Kf4 {[%clk 0:00:06]} 81. Kf2 {[%clk 0:00:04]}  Kg4 {[%clk 0:00:07]} 82. Kg2 {[%clk 0:00:05]}  Kxh4 {[%clk 0:00:08]} 83. Kh2 {[%clk 0:00:06]}  Kg4 {[%clk 0:00:09]} 84. Kg1 {[%clk 0:00:07]}  h4 {[%clk 0:00:10]} 85. Kh2 {[%clk 0:00:08]}  Kf3 {[%clk 0:00:10]} 86. Kg1 {[%clk 0:00:09]}  Kg3 {[%clk 0:00:11]} 87. Kh1 {[%clk 0:00:09]}  Kg4 {[%clk 0:00:12]} 88. Kh2 {[%clk 0:00:10]}  Kf3 {[%clk 0:00:13]} 89. Kh1 {[%clk 0:00:11]}  Kg3 {[%clk 0:00:13]} 90. Kg1 {[%clk 0:00:11]}  Kh3 {[%clk 0:00:14]} 91. Kh1 {[%clk 0:00:12]}  Kg3 {[%clk 0:00:15]} 92. Kg1 {[%clk 0:00:12]}  h3 {[%clk 0:00:16]} 93. Kh1 {[%clk 0:00:13]}  h2 {[%clk 0:00:17]} 1/2-1/2


[Site "https://www.chess.com"]